[Event "*** Titled Tuesday Blitz"]
[Site "Chess.com"]
[Date "2019.02.05"]
[Round "1"]
[White "Muracle"]
[Black "NotFischer"]
[Result "1-0"]
[WhiteElo "2521"]
[BlackElo "2120"]
[TimeControl "180+2"]
[EndTime "13:06:50 PST"]
[Termination "Muracle won by resignation"]

1. Nf3 {[%clk 0:03:00.8]} 1... Nf6 {[%clk 0:03:00.6]} 2. g3 {[%clk 0:03:01.1]}
2... g6 {[%clk 0:03:01.2]} 3. Bg2 {[%clk 0:03:02.6]} 3... Bg7 {[%clk 0:03:03.1]}
4. O-O {[%clk 0:03:04.3]} 4... d6 {[%clk 0:03:04.5]} 5. d4 {[%clk 0:03:05.7]}
5... O-O {[%clk 0:03:05.6]} 6. b3 {[%clk 0:03:07.6]} 6... c6 {[%clk 0:03:06.9]}
7. Bb2 {[%clk 0:03:09]} 7... Bg4 {[%clk 0:03:07.9]} 8. Nbd2 {[%clk 0:03:09.9]}
8... Nbd7 {[%clk 0:03:09.1]} 9. h3 {[%clk 0:03:10.4]} 9... Bxf3 {[%clk 0:03:10]}
10. Nxf3 {[%clk 0:03:09.8]} 10... Qc7 {[%clk 0:03:11.9]} 11. Nd2 {[%clk
0:03:07.5]} 11... Rfe8 {[%clk 0:03:11.1]} 12. a4 {[%clk 0:03:06.4]} 12... a5
{[%clk 0:03:10.5]} 13. Nc4 {[%clk 0:03:06.5]} 13... Rad8 {[%clk 0:03:06.2]} 14.
Qe1 {[%clk 0:03:05.4]} 14... b6 {[%clk 0:02:56.6]} 15. Rd1 {[%clk 0:03:05.3]}
15... c5 {[%clk 0:02:33.8]} 16. dxc5 {[%clk 0:02:52.7]} 16... Nxc5 {[%clk
0:02:29.9]} 17. e4 {[%clk 0:02:52.4]} 17... Nfd7 {[%clk 0:01:43.1]} 18. Bxg7
{[%clk 0:02:50.6]} 18... Kxg7 {[%clk 0:01:45]} 19. Qc3+ {[%clk 0:02:49.7]} 19...
Nf6 {[%clk 0:01:42.6]} 20. f4 {[%clk 0:02:43.9]} 20... Kg8 {[%clk 0:01:40.1]}
21. e5 {[%clk 0:02:43.1]} 21... Nfe4 {[%clk 0:01:35.8]} 22. Bxe4 {[%clk
0:02:20]} 22... Nxe4 {[%clk 0:01:37.7]} 23. Qe3 {[%clk 0:02:21.8]} 23... Qc5
{[%clk 0:01:26.4]} 24. Qxc5 {[%clk 0:02:20.9]} 24... dxc5 {[%clk 0:01:24.4]} 25.
Kg2 {[%clk 0:02:17.1]} 25... Nc3 {[%clk 0:00:53.2]} 26. Rxd8 {[%clk 0:02:08.4]}
26... Rxd8 {[%clk 0:00:55.1]} 27. Nxb6 {[%clk 0:02:09.9]} 27... Rd2+ {[%clk
0:00:50.8]} 28. Rf2 {[%clk 0:02:10.4]} 28... Rd4 {[%clk 0:00:35]} 29. Nc4 {[%clk
0:02:07.5]} 29... Nxa4 {[%clk 0:00:31.7]} 30. Nxa5 {[%clk 0:02:04.5]} 30... Nc3
{[%clk 0:00:32.9]} 31. Nc4 {[%clk 0:01:55.9]} 31... Ne4 {[%clk 0:00:30.9]} 32.
Re2 {[%clk 0:01:54.3]} 32... Kg7 {[%clk 0:00:31]} 33. Kf3 {[%clk 0:01:54.3]}
33... Nc3 {[%clk 0:00:28.6]} 34. Rd2 {[%clk 0:01:54.8]} 34... Rxd2 {[%clk
0:00:22.3]} 35. Nxd2 {[%clk 0:01:56.7]} 35... f6 {[%clk 0:00:22.9]} 36. exf6+
{[%clk 0:01:56]} 36... Kxf6 {[%clk 0:00:24.2]} 37. Ne4+ {[%clk 0:01:57.4]} 37...
Ke6 {[%clk 0:00:22.9]} 38. Nxc3 {[%clk 0:01:57.6]} 1-0

[Event "*** Titled Tuesday Blitz"]
[Site "Chess.com"]
[Date "2019.02.05"]
[Round "1"]
[White "HomayoonTofighi"]
[Black "GGX0X0"]
[Result "1-0"]
[WhiteElo "2725"]
[BlackElo "2334"]
[TimeControl "180+2"]
[EndTime "13:06:57 PST"]
[Termination "HomayoonTofighi won by resignation"]

1. e4 {[%clk 0:03:01.8]} 1... c6 {[%clk 0:03:01.1]} 2. Nf3 {[%clk 0:03:01.9]}
2... d5 {[%clk 0:03:02]} 3. Nc3 {[%clk 0:03:03.8]} 3... Nf6 {[%clk 0:03:01.3]}
4. e5 {[%clk 0:03:04.7]} 4... Ne4 {[%clk 0:03:01.9]} 5. Ne2 {[%clk 0:03:05.1]}
5... e6 {[%clk 0:03:02.3]} 6. d3 {[%clk 0:03:05.9]} 6... Nc5 {[%clk 0:02:51.5]}
7. d4 {[%clk 0:03:05]} 7... Ncd7 {[%clk 0:02:43.9]} 8. Nf4 {[%clk 0:02:56.9]}
8... Nb6 {[%clk 0:02:36.7]} 9. Bd3 {[%clk 0:02:57.7]} 9... c5 {[%clk 0:02:37.1]}
10. c3 {[%clk 0:02:58.9]} 10... Nc6 {[%clk 0:02:38]} 11. O-O {[%clk 0:02:59.5]}
11... Be7 {[%clk 0:02:33.2]} 12. Qe2 {[%clk 0:02:51]} 12... a5 {[%clk
0:02:29.6]} 13. dxc5 {[%clk 0:02:45.5]} 13... Bxc5 {[%clk 0:02:29.9]} 14. Nh5
{[%clk 0:02:45.9]} 14... Bf8 {[%clk 0:02:27.8]} 15. Nd4 {[%clk 0:02:41.7]} 15...
Nd7 {[%clk 0:02:03.9]} 16. f4 {[%clk 0:02:37]} 16... Nc5 {[%clk 0:02:03.4]} 17.
Bc2 {[%clk 0:02:36.1]} 17... Qb6 {[%clk 0:01:43.9]} 18. Kh1 {[%clk 0:02:30.6]}
18... Bd7 {[%clk 0:01:44.4]} 19. Be3 {[%clk 0:02:27.2]} 19... Nxd4 {[%clk
0:01:14.2]} 20. cxd4 {[%clk 0:02:29.1]} 20... Na6 {[%clk 0:01:10.1]} 21. Rac1
{[%clk 0:02:07.4]} 21... Nb4 {[%clk 0:01:07.7]} 22. f5 {[%clk 0:02:03.6]} 22...
Bb5 {[%clk 0:01:02.4]} 23. Qg4 {[%clk 0:01:44.3]} 23... Bxf1 {[%clk 0:00:57.9]}
24. Ba4+ {[%clk 0:01:40]} 24... Bb5 {[%clk 0:00:54.5]} 25. Bxb5+ {[%clk
0:01:35.9]} 25... Qxb5 {[%clk 0:00:55.4]} 26. fxe6 {[%clk 0:01:37.8]} 26... f5
{[%clk 0:00:25.1]} 27. Qxf5 {[%clk 0:01:28.6]} 27... Kd8 {[%clk 0:00:21.6]} 28.
Qf7 {[%clk 0:01:24.8]} 28... Rc8 {[%clk 0:00:19.5]} 29. Bg5+ {[%clk 0:01:24.9]}
1-0

[Event "*** Titled Tuesday Blitz"]
[Site "Chess.com"]
[Date "2019.02.05"]
[Round "1"]
[White "idvidal"]
[Black "aa175"]
[Result "1-0"]
[WhiteElo "2475"]
[BlackElo "1932"]
[TimeControl "180+2"]
[EndTime "13:06:57 PST"]
[Termination "idvidal won by resignation"]

1. c4 {[%clk 0:02:50.2]} 1... e6 {[%clk 0:02:56.9]} 2. Nc3 {[%clk 0:02:50.7]}
2... c5 {[%clk 0:02:57.9]} 3. Nf3 {[%clk 0:02:48.1]} 3... Nc6 {[%clk 0:02:59.1]}
4. e3 {[%clk 0:02:44.7]} 4... Nf6 {[%clk 0:03:00]} 5. d4 {[%clk 0:02:45.3]} 5...
d5 {[%clk 0:03:01.3]} 6. cxd5 {[%clk 0:02:38.6]} 6... Nxd5 {[%clk 0:02:59.4]} 7.
Nxd5 {[%clk 0:02:31]} 7... Qxd5 {[%clk 0:03:01.3]} 8. Be2 {[%clk 0:02:16.1]}
8... cxd4 {[%clk 0:03:02]} 9. exd4 {[%clk 0:02:05.5]} 9... Bb4+ {[%clk
0:03:02.7]} 10. Bd2 {[%clk 0:02:00.5]} 10... Bxd2+ {[%clk 0:02:57.6]} 11. Qxd2
{[%clk 0:02:01.2]} 11... O-O {[%clk 0:02:58.3]} 12. O-O {[%clk 0:02:01.8]} 12...
Rd8 {[%clk 0:02:57.4]} 13. Qf4 {[%clk 0:01:21.3]} 13... Nxd4 {[%clk 0:02:55.3]}
14. Nxd4 {[%clk 0:01:18.4]} 14... Qxd4 {[%clk 0:02:57.2]} 15. Rfd1 {[%clk
0:01:01.6]} 15... Qf6 {[%clk 0:02:35.2]} 16. Qxf6 {[%clk 0:00:55.3]} 16... Rxd1+
{[%clk 0:02:35.7]} 17. Rxd1 {[%clk 0:00:57]} 17... gxf6 {[%clk 0:02:36.7]} 18.
Rd8+ {[%clk 0:00:55.7]} 18... Kg7 {[%clk 0:02:36.9]} 19. Bf3 {[%clk 0:00:57.2]}
19... Rb8 {[%clk 0:02:35.1]} 20. h4 {[%clk 0:00:46.7]} 20... e5 {[%clk
0:02:35.4]} 21. h5 {[%clk 0:00:36.8]} 21... f5 {[%clk 0:02:36]} 22. Bd5 {[%clk
0:00:36.5]} 22... b6 {[%clk 0:02:06.4]} 23. g3 {[%clk 0:00:36.1]} 23... e4
{[%clk 0:01:46.2]} 24. b4 {[%clk 0:00:35.9]} 24... a5 {[%clk 0:01:44.7]} 25. a3
{[%clk 0:00:36.1]} 25... axb4 {[%clk 0:01:44.2]} 26. axb4 {[%clk 0:00:37.2]}
26... b5 {[%clk 0:01:38.8]} 27. Bc6 {[%clk 0:00:25.2]} 27... Bb7 {[%clk
0:01:01.1]} 28. Rxb8 {[%clk 0:00:23.4]} 28... Bxc6 {[%clk 0:01:01.9]} 29. h6+
{[%clk 0:00:23]} 1-0

[Event "*** Titled Tuesday Blitz"]
[Site "Chess.com"]
[Date "2019.02.05"]
[Round "1"]
[White "GrandGlacier"]
[Black "NateSolon"]
[Result "1-0"]
[WhiteElo "2167"]
[BlackElo "2523"]
[TimeControl "180+2"]
[EndTime "13:06:58 PST"]
[Termination "GrandGlacier won by resignation"]

1. e4 {[%clk 0:03:01.5]} 1... c5 {[%clk 0:03:00.5]} 2. Nf3 {[%clk 0:03:02.5]}
2... d6 {[%clk 0:03:01.5]} 3. d4 {[%clk 0:03:03.7]} 3... cxd4 {[%clk 0:03:03.4]}
4. Nxd4 {[%clk 0:03:05]} 4... Nf6 {[%clk 0:03:04.7]} 5. Nc3 {[%clk 0:03:06.4]}
5... Nc6 {[%clk 0:03:05.8]} 6. Bg5 {[%clk 0:03:05.9]} 6... Bd7 {[%clk
0:03:06.7]} 7. Bxf6 {[%clk 0:03:05.6]} 7... gxf6 {[%clk 0:03:07.4]} 8. Qd2
{[%clk 0:03:06.6]} 8... h5 {[%clk 0:03:02.2]} 9. Nb3 {[%clk 0:02:59.6]} 9... Bh6
{[%clk 0:02:59.5]} 10. f4 {[%clk 0:02:59.3]} 10... Rg8 {[%clk 0:02:18.7]} 11.
O-O-O {[%clk 0:02:52.5]} 11... Rc8 {[%clk 0:01:54.8]} 12. Kb1 {[%clk 0:02:52.3]}
12... Ne5 {[%clk 0:01:51.1]} 13. Nd5 {[%clk 0:02:37.5]} 13... Bc6 {[%clk
0:01:39.6]} 14. Qf2 {[%clk 0:02:25.5]} 14... Ng4 {[%clk 0:01:37.7]} 15. Qxa7
{[%clk 0:02:21.1]} 15... Bxd5 {[%clk 0:01:38.6]} 16. Rxd5 {[%clk 0:02:15]} 16...
Qc7 {[%clk 0:01:23.3]} 17. Bd3 {[%clk 0:01:54.5]} 17... Bxf4 {[%clk 0:01:24]}
18. Rb5 {[%clk 0:01:38.1]} 18... Be3 {[%clk 0:01:15.3]} 19. Qxb7 {[%clk
0:01:34.7]} 19... Qxb7 {[%clk 0:01:16.3]} 20. Rxb7 {[%clk 0:01:35.4]} 20... Ne5
{[%clk 0:01:18.2]} 21. g3 {[%clk 0:01:28.2]} 21... h4 {[%clk 0:01:19.4]} 22.
gxh4 {[%clk 0:01:28.9]} 22... Rg2 {[%clk 0:01:19.7]} 23. Bb5+ {[%clk 0:01:19]}
23... Kf8 {[%clk 0:01:20.5]} 24. c3 {[%clk 0:01:19.6]} 24... Ng4 {[%clk
0:01:09.9]} 25. a4 {[%clk 0:01:11.5]} 25... Nf2 {[%clk 0:01:05.9]} 26. Re1
{[%clk 0:01:11.9]} 26... Bf4 {[%clk 0:00:59.2]} 27. a5 {[%clk 0:01:10.1]} 27...
Rxh2 {[%clk 0:00:47.3]} 28. a6 {[%clk 0:01:09]} 28... Rxh4 {[%clk 0:00:48.5]}
29. a7 {[%clk 0:01:09.2]} 29... d5 {[%clk 0:00:44.3]} 30. e5 {[%clk 0:01:09.8]}
30... Bxe5 {[%clk 0:00:40.3]} 31. Rxe5 {[%clk 0:01:07.9]} 31... fxe5 {[%clk
0:00:37.7]} 32. Rb8 {[%clk 0:01:08.1]} 1-0

[Event "*** Titled Tuesday Blitz"]
[Site "Chess.com"]
[Date "2019.02.05"]
[Round "1"]
[White "schoolmeester"]
[Black "Supelyel"]
[Result "1-0"]
[WhiteElo "2725"]
[BlackElo "2333"]
[TimeControl "180+2"]
[EndTime "13:07:02 PST"]
[Termination "schoolmeester won by resignation"]

1. e4 {[%clk 0:03:00.7]} 1... c5 {[%clk 0:03:00]} 2. Nf3 {[%clk 0:03:00.6]} 2...
Nc6 {[%clk 0:02:59.4]} 3. Bb5 {[%clk 0:03:00]} 3... g6 {[%clk 0:02:57.2]} 4. O-O
{[%clk 0:02:59.3]} 4... Bg7 {[%clk 0:02:57.8]} 5. Re1 {[%clk 0:02:59.5]} 5...
Nf6 {[%clk 0:02:57.2]} 6. e5 {[%clk 0:02:58.9]} 6... Nd5 {[%clk 0:02:58]} 7. Nc3
{[%clk 0:02:59.6]} 7... Nc7 {[%clk 0:02:58.5]} 8. Bxc6 {[%clk 0:02:59.8]} 8...
dxc6 {[%clk 0:03:00.4]} 9. Ne4 {[%clk 0:02:58.3]} 9... b6 {[%clk 0:02:48.3]} 10.
Nf6+ {[%clk 0:02:58.2]} 10... Kf8 {[%clk 0:02:33.2]} 11. Ne4 {[%clk 0:02:56.9]}
11... Bg4 {[%clk 0:02:23.3]} 12. h3 {[%clk 0:02:34.9]} 12... Bxf3 {[%clk
0:02:05.2]} 13. Qxf3 {[%clk 0:02:34]} 13... h6 {[%clk 0:02:06.4]} 14. d3 {[%clk
0:02:30.9]} 14... Qd5 {[%clk 0:01:34.9]} 15. Nd2 {[%clk 0:02:25.7]} 15... Rd8
{[%clk 0:01:18.4]} 16. Qe2 {[%clk 0:02:17.3]} 16... Ne6 {[%clk 0:01:15.7]} 17.
Nf3 {[%clk 0:02:15.3]} 17... Kg8 {[%clk 0:01:15]} 18. Bd2 {[%clk 0:01:34.3]}
18... Kh7 {[%clk 0:01:14.8]} 19. b3 {[%clk 0:01:29.6]} 19... Rhe8 {[%clk
0:01:03.9]} 20. Rad1 {[%clk 0:01:23.6]} 20... Qd7 {[%clk 0:00:55.4]} 21. Be3
{[%clk 0:01:20.9]} 21... Nc7 {[%clk 0:00:50.6]} 22. c4 {[%clk 0:01:13.8]} 22...
Qf5 {[%clk 0:00:45.3]} 23. d4 {[%clk 0:01:10.7]} 23... cxd4 {[%clk 0:00:45.9]}
24. Nxd4 {[%clk 0:01:11.5]} 24... Qd7 {[%clk 0:00:39.4]} 25. Qf3 {[%clk
0:01:10.8]} 25... c5 {[%clk 0:00:32.1]} 26. Nc6 {[%clk 0:01:10.3]} 26... Qc8
{[%clk 0:00:18.2]} 27. Nxd8 {[%clk 0:01:10.5]} 27... Rxd8 {[%clk 0:00:20.1]} 28.
Qxf7 {[%clk 0:01:08.9]} 28... Re8 {[%clk 0:00:20]} 29. Rd3 {[%clk 0:01:03.8]}
29... Ne6 {[%clk 0:00:20.1]} 30. Red1 {[%clk 0:01:04.1]} 30... Rf8 {[%clk
0:00:18.5]} 31. Qxe7 {[%clk 0:01:03.9]} 31... Re8 {[%clk 0:00:19]} 32. Qxa7
{[%clk 0:01:03.5]} 1-0

[Event "*** Titled Tuesday Blitz"]
[Site "Chess.com"]
[Date "2019.02.05"]
[Round "1"]
[White "alexsuper1987"]
[Black "MatthewG-p4p"]
[Result "0-1"]
[WhiteElo "2287"]
[BlackElo "2659"]
[TimeControl "180+2"]
[EndTime "13:07:02 PST"]
[Termination "MatthewG-p4p won by checkmate"]

1. e4 {[%clk 0:03:01.9]} 1... e6 {[%clk 0:02:53.3]} 2. d4 {[%clk 0:03:02.5]}
2... d5 {[%clk 0:02:54.8]} 3. Nc3 {[%clk 0:03:03.1]} 3... Bb4 {[%clk 0:02:55.8]}
4. e5 {[%clk 0:03:03]} 4... c5 {[%clk 0:02:56.9]} 5. a3 {[%clk 0:03:03.1]} 5...
Bxc3+ {[%clk 0:02:58.1]} 6. bxc3 {[%clk 0:03:05]} 6... Ne7 {[%clk 0:02:59.7]} 7.
Qg4 {[%clk 0:03:06]} 7... cxd4 {[%clk 0:02:58.2]} 8. Qxg7 {[%clk 0:03:00.3]}
8... Rg8 {[%clk 0:02:59.1]} 9. Qxh7 {[%clk 0:03:01.8]} 9... Qc7 {[%clk
0:02:59.6]} 10. Ne2 {[%clk 0:03:03.1]} 10... Nbc6 {[%clk 0:03:00.6]} 11. f4
{[%clk 0:03:02.3]} 11... Bd7 {[%clk 0:03:00.7]} 12. h4 {[%clk 0:03:01.9]} 12...
O-O-O {[%clk 0:02:59.2]} 13. Qd3 {[%clk 0:02:53.3]} 13... dxc3 {[%clk
0:03:00.3]} 14. h5 {[%clk 0:02:53.3]} 14... d4 {[%clk 0:03:00.6]} 15. Rb1 {[%clk
0:02:50.5]} 15... Nf5 {[%clk 0:02:59.7]} 16. g3 {[%clk 0:02:39.2]} 16... a6
{[%clk 0:02:49.4]} 17. Bg2 {[%clk 0:02:34]} 17... Na5 {[%clk 0:02:43.6]} 18. Be4
{[%clk 0:02:32.8]} 18... Bb5 {[%clk 0:02:31.6]} 19. Rxb5 {[%clk 0:02:27.1]}
19... axb5 {[%clk 0:02:32.9]} 20. Bxf5 {[%clk 0:02:28.3]} 20... exf5 {[%clk
0:02:34]} 21. Qxf5+ {[%clk 0:02:21.3]} 21... Kb8 {[%clk 0:02:35.2]} 22. h6
{[%clk 0:02:21.5]} 22... Qc6 {[%clk 0:02:31.6]} 23. Rh2 {[%clk 0:02:06.3]} 23...
Nc4 {[%clk 0:02:24.1]} 24. h7 {[%clk 0:02:06.1]} 24... Rh8 {[%clk 0:02:25]} 25.
Qxf7 {[%clk 0:02:02.6]} 25... d3 {[%clk 0:02:23.2]} 26. cxd3 {[%clk 0:02:00.4]}
26... Rxd3 {[%clk 0:02:25.1]} 27. Qf6 {[%clk 0:01:49.3]} 27... Qc8 {[%clk
0:02:20.9]} 28. e6 {[%clk 0:01:19.7]} 28... Nd2 {[%clk 0:02:16.8]} 29. Rh5
{[%clk 0:00:28.4]} 29... Ka8 {[%clk 0:01:28.2]} 30. Rxb5 {[%clk 0:00:19.3]}
30... Rxh7 {[%clk 0:01:28.3]} 31. Ra5+ {[%clk 0:00:19.5]} 31... Kb8 {[%clk
0:01:29.7]} 32. Qe5+ {[%clk 0:00:20.8]} 32... Qc7 {[%clk 0:01:31.3]} 33. e7
{[%clk 0:00:16.9]} 33... Nf3+ {[%clk 0:01:25.3]} 34. Kf2 {[%clk 0:00:15.6]}
34... Rh2+ {[%clk 0:01:26.7]} 35. Kf1 {[%clk 0:00:13.1]} 35... Rd1# {[%clk
0:01:27.9]} 0-1

[Event "*** Titled Tuesday Blitz"]
[Site "Chess.com"]
[Date "2019.02.05"]
[Round "1"]
[White "iturrizaga"]
[Black "arctic_t00"]
[Result "1-0"]
[WhiteElo "2763"]
[BlackElo "2373"]
[TimeControl "180+2"]
[EndTime "13:07:04 PST"]
[Termination "iturrizaga won on time"]

1. Nf3 {[%clk 0:03:00.6]} 1... Nf6 {[%clk 0:03:00.4]} 2. c4 {[%clk 0:03:02.5]}
2... g6 {[%clk 0:02:59.6]} 3. g3 {[%clk 0:03:03.8]} 3... Bg7 {[%clk 0:03:00.2]}
4. Bg2 {[%clk 0:03:05.7]} 4... O-O {[%clk 0:03:00.7]} 5. O-O {[%clk 0:03:07.3]}
5... d6 {[%clk 0:03:02.1]} 6. d4 {[%clk 0:03:07.8]} 6... Nbd7 {[%clk 0:03:03.5]}
7. Nc3 {[%clk 0:03:08]} 7... e5 {[%clk 0:03:04.5]} 8. Qc2 {[%clk 0:03:09.4]}
8... Re8 {[%clk 0:03:04.7]} 9. Rd1 {[%clk 0:03:10.2]} 9... c6 {[%clk 0:02:59.2]}
10. b3 {[%clk 0:03:11.2]} 10... Qe7 {[%clk 0:02:49.7]} 11. Ba3 {[%clk
0:03:11.1]} 11... e4 {[%clk 0:02:50.9]} 12. Ng5 {[%clk 0:03:12.2]} 12... e3
{[%clk 0:02:47.7]} 13. f3 {[%clk 0:03:13.4]} 13... h6 {[%clk 0:02:43.9]} 14.
Nge4 {[%clk 0:03:13.8]} 14... c5 {[%clk 0:02:39.8]} 15. dxc5 {[%clk 0:02:30.2]}
15... dxc5 {[%clk 0:02:16.5]} 16. Nd6 {[%clk 0:02:29.9]} 16... Rd8 {[%clk
0:02:10.1]} 17. f4 {[%clk 0:02:30.9]} 17... Rb8 {[%clk 0:01:34.7]} 18. Ncb5
{[%clk 0:02:15.9]} 18... Ne8 {[%clk 0:01:04.8]} 19. Bd5 {[%clk 0:01:56.2]} 19...
Nxd6 {[%clk 0:01:03.1]} 20. Nxd6 {[%clk 0:01:55.8]} 20... Nb6 {[%clk 0:00:28.5]}
21. Bxf7+ {[%clk 0:01:46.8]} 21... Kh8 {[%clk 0:00:17]} 22. Qxg6 {[%clk
0:01:43.1]} 22... Nd7 {[%clk 0:00:05.2]} 23. Nf5 {[%clk 0:01:35]} 23... Qf6
{[%clk 0:00:03.6]} 24. Nxg7 {[%clk 0:00:51.7]} 24... Qxg7 {[%clk 0:00:03.5]} 25.
Bb2 {[%clk 0:00:51.3]} 1-0

[Event "*** Titled Tuesday Blitz"]
[Site "Chess.com"]
[Date "2019.02.05"]
[Round "1"]
[White "minnesotachessmaster"]
[Black "MissingLife"]
[Result "1/2-1/2"]
[WhiteElo "2007"]
[BlackElo "2462"]
[TimeControl "180+2"]
[EndTime "13:07:05 PST"]
[Termination "Game drawn by agreement"]

1. e4 {[%clk 0:03:00.9]} 1... e6 {[%clk 0:03:00]} 2. d4 {[%clk 0:03:01.2]} 2...
d5 {[%clk 0:03:01.7]} 3. Nc3 {[%clk 0:03:02.1]} 3... Bb4 {[%clk 0:03:02.2]} 4.
e5 {[%clk 0:03:01.8]} 4... Ne7 {[%clk 0:03:03.7]} 5. a3 {[%clk 0:03:02.6]} 5...
Ba5 {[%clk 0:03:03.9]} 6. b4 {[%clk 0:03:02.8]} 6... Bb6 {[%clk 0:03:05.4]} 7.
Be3 {[%clk 0:03:02.2]} 7... Nf5 {[%clk 0:03:05.7]} 8. Nf3 {[%clk 0:03:01.5]}
8... Nc6 {[%clk 0:03:07.2]} 9. Bb5 {[%clk 0:02:59.4]} 9... Bd7 {[%clk 0:03:08]}
10. Bxc6 {[%clk 0:02:58.1]} 10... Bxc6 {[%clk 0:03:09.9]} 11. O-O {[%clk
0:02:58.9]} 11... O-O {[%clk 0:03:08.1]} 12. Ne2 {[%clk 0:02:55.5]} 12... Bb5
{[%clk 0:03:08]} 13. Re1 {[%clk 0:02:53.6]} 13... Nxe3 {[%clk 0:03:07.3]} 14.
fxe3 {[%clk 0:02:54.2]} 14... f5 {[%clk 0:03:01.3]} 15. Nf4 {[%clk 0:02:51.7]}
15... Qe7 {[%clk 0:03:01.3]} 16. h4 {[%clk 0:02:51.6]} 16... a5 {[%clk
0:02:59.5]} 17. c3 {[%clk 0:02:50.8]} 17... g6 {[%clk 0:02:58.4]} 18. Kf2 {[%clk
0:02:48.3]} 18... Ra7 {[%clk 0:02:51.6]} 19. Rg1 {[%clk 0:02:45.2]} 19... Rfa8
{[%clk 0:02:52.5]} 20. Qc1 {[%clk 0:02:31.8]} 20... axb4 {[%clk 0:02:52.3]} 21.
cxb4 {[%clk 0:02:32.2]} 21... Bc4 {[%clk 0:02:45.8]} 22. g4 {[%clk 0:02:16.2]}
22... Rf8 {[%clk 0:02:43.4]} 23. g5 {[%clk 0:02:07.8]} 23... c6 {[%clk
0:02:39.9]} 24. h5 {[%clk 0:02:07.9]} 24... Kf7 {[%clk 0:02:38.8]} 25. Rh1
{[%clk 0:02:05.4]} 25... Rg8 {[%clk 0:02:33.5]} 26. hxg6+ {[%clk 0:01:51.8]}
26... hxg6 {[%clk 0:02:35.4]} 27. Rh7+ {[%clk 0:01:52.3]} 27... Rg7 {[%clk
0:02:36.8]} 28. Rxg7+ {[%clk 0:01:53.3]} 28... Kxg7 {[%clk 0:02:38.7]} 29. Qh1
{[%clk 0:01:54]} 29... Kg8 {[%clk 0:02:33.2]} 30. Nxg6 {[%clk 0:01:48.6]} 30...
Qh7 {[%clk 0:02:32.3]} 31. Qxh7+ {[%clk 0:01:45.2]} 31... Kxh7 {[%clk
0:02:34.2]} 32. Nf8+ {[%clk 0:01:43.5]} 32... Kg8 {[%clk 0:02:34]} 33. Nxe6
{[%clk 0:01:44.4]} 33... Bd3 {[%clk 0:02:34.1]} 34. Nf4 {[%clk 0:01:39.2]} 34...
Be4 {[%clk 0:02:35]} 35. g6 {[%clk 0:01:33.4]} 35... Bd8 {[%clk 0:02:35.4]} 36.
Kg3 {[%clk 0:01:07.2]} 36... Be7 {[%clk 0:02:36.3]} 37. Nd2 {[%clk 0:00:59.1]}
37... Bxb4 {[%clk 0:02:34.3]} 38. Nb3 {[%clk 0:00:50.9]} 38... Rxa3 {[%clk
0:02:30.6]} 39. Rxa3 {[%clk 0:00:51]} 39... Bxa3 {[%clk 0:02:32.5]} 40. e6
{[%clk 0:00:49.9]} 40... b6 {[%clk 0:02:30.3]} 41. Nd2 {[%clk 0:00:37]} 41...
Kg7 {[%clk 0:02:28.2]} 42. Nxe4 {[%clk 0:00:36.6]} 42... dxe4 {[%clk 0:02:30.1]}
43. Kh4 {[%clk 0:00:35.4]} 43... Be7+ {[%clk 0:02:30.4]} 44. Kh5 {[%clk
0:00:36.5]} 44... Bd6 {[%clk 0:02:30.6]} 45. Ng2 {[%clk 0:00:33.9]} 45... b5
{[%clk 0:02:31.3]} 46. Nh4 {[%clk 0:00:34.7]} 46... Kf6 {[%clk 0:02:27]} 47.
Nxf5 {[%clk 0:00:35.6]} 47... Bf8 {[%clk 0:02:24.2]} 48. e7 {[%clk 0:00:33]}
48... Bxe7 {[%clk 0:02:24.5]} 49. Nxe7 {[%clk 0:00:34.1]} 49... b4 {[%clk
0:02:22.4]} 50. Kh6 {[%clk 0:00:31.9]} 50... b3 {[%clk 0:02:22.5]} 51. g7 {[%clk
0:00:32.3]} 51... b2 {[%clk 0:02:23.6]} 52. g8=Q {[%clk 0:00:32.9]} 52... b1=Q
{[%clk 0:02:24.6]} 53. Qf8+ {[%clk 0:00:34]} 53... Ke6 {[%clk 0:02:25.6]} 54.
Ng6 {[%clk 0:00:34.4]} 1/2-1/2